fUST/lending_fUST_20250116
["ID","MTS","AMOUNT","RATE_DAILY","PERIOD"]
[349178898,1737016237731,-153.0,0.00019639,2]
[349178899,1737016237740,-153.0,0.00019639,2]
[349178900,1737016237751,-153.0,0.00019639,2]
[349178901,1737016237760,-153.0,0.00019639,2]
[349178902,1737016237771,-153.0,0.00019643,2]
[349178903,1737016237781,-153.0,0.00019643,2]
[349178904,1737016237792,-153.0,0.00019643,2]
[349178905,1737016237802,-153.0,0.00019643,2]
[349178906,1737016237928,-153.0,0.00019643,2]
[349178907,1737016237939,-153.0,0.00019643,2]
[349178908,1737016237948,-153.0,0.00019643,2]
[349178909,1737016237959,-153.0,0.00019643,2]
[349178910,1737016237968,-153.0,0.00019643,2]
[349178911,1737016237978,-153.0,0.00019643,2]
[349178912,1737016237987,-153.0,0.00019643,2]
[349178913,1737016237998,-153.0,0.00019643,2]
[349178914,1737016238008,-153.0,0.00019643,2]
[349178915,1737016238018,-153.0,0.00019643,2]
[349178916,1737016238027,-153.0,0.00019643,2]
[349178917,1737016238038,-153.0,0.00019643,2]
[349178918,1737016238047,-153.0,0.00019643,2]
[349178919,1737016238057,-153.0,0.00019643,2]
[349178920,1737016238067,-153.0,0.00019643,2]
[349178921,1737016238077,-153.0,0.00019643,2]
[349178922,1737016238087,-153.0,0.00019643,2]
[349178923,1737016238095,-153.0,0.00019643,2]
[349178925,1737016238105,-153.0,0.00019643,2]
[349178927,1737016238114,-153.0,0.00019643,2]
[349178929,1737016238124,-153.0,0.00019643,2]
[349178931,1737016238133,-153.0,0.00019648,2]
[349178933,1737016238143,-153.0,0.00019648,2]
[349178935,1737016238153,-153.0,0.00019648,2]
[349178937,1737016238162,-153.0,0.00019648,2]
[349178939,1737016238171,-153.0,0.00019648,2]
[349178941,1737016238180,-153.0,0.00019648,2]
[349178944,1737016238190,-153.0,0.00019648,2]
[349178945,1737016238200,-153.0,0.00019648,2]
[349178946,1737016238209,-153.0,0.00019648,2]
[349178947,1737016238219,-153.0,0.00019648,2]
[349178948,1737016238228,-153.0,0.00019648,2]
[349178949,1737016238237,-153.0,0.00019649,2]
[349178950,1737016238247,-153.0,0.00019649,2]
[349178951,1737016238257,-153.0,0.00019649,2]
[349178952,1737016238266,-153.0,0.00019649,2]
[349178953,1737016238276,-153.0,0.00019649,2]
[349178954,1737016238285,-153.0,0.00019649,2]
[349178955,1737016238294,-153.0,0.00019649,2]
[349178956,1737016238303,-153.0,0.00019649,2]
[349178957,1737016238313,-153.0,0.00019649,2]
[349178958,1737016238323,-153.0,0.00019649,2]
[349178959,1737016238333,-153.0,0.00019649,2]
[349178960,1737016238343,-153.0,0.00019649,2]
[349178961,1737016238353,-153.0,0.00019649,2]
[349178962,1737016238362,-153.0,0.00019649,2]
[349178963,1737016238372,-153.0,0.00019653,2]
[349178964,1737016238382,-153.0,0.00019653,2]
[349178965,1737016238392,-153.0,0.00019653,2]
[349178966,1737016238401,-153.0,0.00019653,2]
[349178967,1737016238410,-153.0,0.00019653,2]
[349178968,1737016238419,-153.0,0.00019653,2]
[349178969,1737016238428,-153.0,0.00019653,2]
[349178970,1737016238438,-153.0,0.00019653,2]
[349178971,1737016238447,-153.0,0.00019653,2]
[349178972,1737016238456,-153.0,0.00019653,2]
[349178973,1737016238466,-153.0,0.00019653,2]
[349178974,1737016238476,-153.0,0.00019653,2]
[349178975,1737016238485,-153.0,0.00019653,2]
[349178976,1737016238495,-153.0,0.00019653,2]
[349178978,1737016238506,-153.0,0.00019653,2]
[349178980,1737016238515,-153.0,0.00019653,2]
[349178982,1737016238525,-153.0,0.00019653,2]
[349178984,1737016238533,-153.0,0.00019653,2]
[349178985,1737016238543,-153.0,0.00019653,2]
[349178986,1737016238552,-153.0,0.00019653,2]
[349178988,1737016238561,-153.0,0.00019653,2]
[349178990,1737016238570,-153.0,0.00019653,2]
[349178992,1737016238579,-153.0,0.00019653,2]
[349178993,1737016238588,-153.0,0.00019653,2]
[349178995,1737016238598,-153.0,0.00019653,2]
[349178997,1737016238608,-153.0,0.00019658,2]
[349178998,1737016238618,-153.0,0.00019658,2]
[349178999,1737016238627,-153.0,0.00019658,2]
[349179000,1737016238637,-153.0,0.00019658,2]
[349179001,1737016238647,-153.0,0.00019658,2]
[349179002,1737016238656,-153.0,0.00019658,2]
[349179003,1737016238666,-153.0,0.00019658,2]
[349179004,1737016238675,-153.0,0.00019658,2]
[349179005,1737016238684,-153.0,0.00019658,2]
[349179006,1737016238694,-153.0,0.00019658,2]
[349179007,1737016238704,-153.0,0.00019658,2]
[349179008,1737016238715,-153.0,0.00019658,2]
[349179009,1737016238725,-153.0,0.00019658,2]
[349179010,1737016238735,-153.0,0.00019658,2]
[349179011,1737016238746,-153.0,0.00019658,2]
[349179012,1737016238757,-153.0,0.00019658,2]
[349179013,1737016238767,-153.0,0.00019658,2]
[349179014,1737016238776,-153.0,0.00019658,2]
[349179015,1737016238786,-153.0,0.00019658,2]
[349179016,1737016238798,-153.0,0.00019658,2]
[349179017,1737016238808,-153.0,0.00019658,2]
[349179018,1737016238817,-153.0,0.00019658,2]
[349179019,1737016238827,-153.0,0.00019658,2]
[349179020,1737016238836,-153.0,0.00019658,2]
[349179021,1737016238846,-153.0,0.00019658,2]
[349179022,1737016238856,-153.0,0.00019662,2]
[349179023,1737016238865,-153.0,0.00019662,2]
[349179024,1737016238874,-153.0,0.00019662,2]
[349179025,1737016238884,-153.0,0.00019662,2]
[349179026,1737016238893,-153.0,0.00019662,2]
[349179027,1737016238903,-153.0,0.00019662,2]
[349179028,1737016238913,-153.0,0.00019662,2]
[349179029,1737016238923,-153.0,0.00019662,2]
[349179030,1737016238933,-153.0,0.00019662,2]
[349179031,1737016238943,-153.0,0.00019662,2]
[349179032,1737016238953,-153.0,0.00019662,2]
[349179033,1737016238963,-153.0,0.00019663,2]
[349179034,1737016238973,-153.0,0.00019663,2]
[349179035,1737016238982,-153.0,0.00019663,2]
[349179036,1737016238992,-153.0,0.00019663,2]
[349179037,1737016239003,-153.0,0.00019663,2]
[349179038,1737016239012,-153.0,0.00019663,2]
[349179039,1737016239022,-153.0,0.00019663,2]
[349179040,1737016239032,-153.0,0.00019663,2]
[349179041,1737016239042,-153.0,0.00019663,2]
[349179042,1737016239052,-153.0,0.00019663,2]
[349179043,1737016239061,-153.0,0.00019663,2]
[349179044,1737016239071,-153.0,0.00019663,2]
[349179045,1737016239081,-153.0,0.00019663,2]
[349179046,1737016239091,-280.9,0.00019697,4]
[349179047,1737016239101,-500.0,0.00019726,3]
[349179048,1737016239111,-500.0,0.00019726,3]
[349179049,1737016239122,-500.0,0.00019726,3]
[349179050,1737016239132,-500.0,0.00019726,3]
[349179051,1737016239142,-500.0,0.00019726,3]
[349179052,1737016239152,-500.0,0.00019726,3]
[349179053,1737016239161,-500.0,0.00019726,3]
[349179054,1737016239171,-964.82,0.00019726,3]
[349179055,1737016239180,-500.0,0.00019726,3]
[349179056,1737016239190,-500.0,0.00019726,3]
[349179057,1737016239199,-2173.0,0.00019726,3]
[349179058,1737016239210,-547.14,0.00019726,3]
[349179059,1737016239220,-908.65,0.00019726,3]
[349179060,1737016239230,-500.0,0.00019726,3]
[349179061,1737016239239,-500.0,0.00019726,3]
[349179062,1737016239249,-500.0,0.00019726,3]
[349179063,1737016239259,-694.8,0.00019726,3]
[349179064,1737016239269,-500.0,0.00019726,3]
[349179065,1737016239278,-500.0,0.00019726,3]
[349179066,1737016239287,-500.0,0.00019726,3]
[349179067,1737016239297,-500.0,0.00019726,3]
[349179068,1737016239308,-500.0,0.00019726,3]
[349179069,1737016239319,-500.0,0.00019726,3]
[349179070,1737016239328,-500.0,0.00019726,3]
[349179071,1737016239338,-518.64,0.00019726,3]
[349179072,1737016239348,-500.0,0.00019726,3]
[349179073,1737016239358,-500.0,0.00019726,3]
[349179074,1737016239367,-500.0,0.00019726,3]
[349179075,1737016239377,-359.36,0.00019726,3]
[349179076,1737016239387,-822.02,0.00019726,3]
[349179077,1737016239397,-500.0,0.00019726,3]
[349179078,1737016239408,-500.0,0.00019726,3]
[349179079,1737016239418,-500.0,0.00019726,3]
[349179080,1737016239429,-500.0,0.00019726,3]
[349179081,1737016239439,-500.0,0.00019726,3]
[349179082,1737016239448,-500.0,0.00019726,3]
[349179083,1737016239457,-523.68210351,0.00019726,3]
[349179084,1737016239467,-654.19,0.00019726,2]
[349179085,1737016239476,-500.0,0.00019726,3]
[349179086,1737016239485,-500.0,0.00019726,3]
[349179087,1737016239495,-1814.93,0.00019726,3]
[349179088,1737016239506,-500.0,0.00019726,3]
[349179089,1737016239516,-500.0,0.00019726,3]
[349179090,1737016239526,-500.0,0.00019726,3]
[349179091,1737016239535,-532.07,0.00019726,3]
[349179092,1737016239545,-500.0,0.00019726,3]
[349179093,1737016239555,-3423.9,0.00019726,3]
[349179094,1737016239564,-1355.4,0.00019726,3]
[349179095,1737016239573,-500.0,0.00019726,3]
[349179096,1737016239582,-11423.92,0.00019726,3]
[349179097,1737016239591,-500.0,0.00019726,3]
[349179098,1737016239601,-514.56109357,0.00019726,3]
[349179099,1737016239611,-23282.56,0.00019726,3]
[349179100,1737016239620,-500.0,0.00019726,3]
[349179101,1737016239630,-671.91,0.00019726,3]
[349179102,1737016239639,-500.0,0.00019726,3]
[349179103,1737016239648,-1061.4,0.00019726,3]
[349179105,1737016239659,-613.69,0.00019726,3]
[349179106,1737016239669,-548.68,0.00019726,3]
[349179107,1737016239680,-500.0,0.00019726,3]
[349179108,1737016239690,-500.0,0.00019726,3]
[349179109,1737016239700,-500.0,0.00019726,3]
[349179111,1737016239715,-740.28,0.00019726,3]
[349179113,1737016239725,-2359.74,0.00019726,3]
[349179115,1737016239735,-7640.34,0.00019726,3]
[349179116,1737016239746,-612.56,0.00019726,3]
[349179117,1737016239757,-1464.42,0.00019726,3]
[349179118,1737016239768,-1199.38,0.00019726,3]
[349179119,1737016239778,-2138.3,0.00019726,3]
[349179120,1737016239788,-628.37071692,0.00019726,3]
[349179122,1737016239799,-3527.66,0.00019726,3]
[349179124,1737016239808,-500.0,0.00019726,3]
[349179126,1737016239817,-500.0,0.00019726,3]
[349179128,1737016239827,-500.0,0.00019726,3]
[349179129,1737016239837,-3028.79,0.00019726,3]
[349179131,1737016239848,-596.75,0.00019726,3]
[349179132,1737016239858,-794.43,0.00019726,3]
[349179133,1737016239869,-955.41,0.00019726,3]
[349179134,1737016239879,-585.22,0.00019726,3]
[349179135,1737016239890,-500.0,0.00019726,3]
[349179136,1737016239900,-2630.12,0.00019726,3]
[349179137,1737016239910,-500.0,0.00019726,3]
[349179138,1737016239920,-1340.87,0.00019726,3]
[349179139,1737016239930,-3741.69,0.00019726,3]
[349179140,1737016239940,-33251.21,0.00019726,3]
[349179141,1737016239950,-901.68,0.00019726,3]
[349179142,1737016239960,-14765.7,0.00019726,3]
[349179143,1737016239969,-837.12,0.00019726,3]
[349179144,1737016239980,-389.60663827,0.00019726,3]
[349179145,1737016239991,-1363.77,0.00019726,3]
[349179146,1737016240002,-500.0,0.00019726,3]
[349179147,1737016240011,-500.0,0.00019726,3]
[349179148,1737016240020,-980.91,0.00019726,3]
[349179149,1737016240030,-9866.55,0.00019726,3]
[349179150,1737016240039,-8869.94,0.00019726,3]
[349179151,1737016240049,-500.0,0.00019726,3]
[349179152,1737016240060,-598.49,0.00019726,3]
[349179153,1737016240069,-500.0,0.00019726,3]
[349179154,1737016240079,-1696.36,0.00019726,3]
[349179155,1737016240089,-184.930898,0.00019744,2]
[349179156,1737016240099,-280.9,0.00019772,4]
[349179157,1737016240109,-442.059,0.00019782,2]
[349179158,1737016240119,-280.9,0.00019848,4]
[349179159,1737016240128,-500.0,0.00019863,3]
[349179160,1737016240138,-500.0,0.00019863,3]
[349179161,1737016240148,-500.0,0.00019863,3]
[349179162,1737016240157,-500.0,0.00019863,3]
[349179163,1737016240167,-209.12913362,0.00019863,3]
[349179164,1737016240176,-500.0,0.00019863,3]
[349179165,1737016240186,-500.0,0.00019863,3]
[349179166,1737016240196,-964.82,0.00019863,3]
[349179167,1737016240207,-500.0,0.00019863,3]
[349179168,1737016240217,-618.9548104,0.00019863,3]
[349179169,1737016240227,-2173.0,0.00019863,3]
[349179171,1737016240237,-547.14,0.00019863,3]
[349179172,1737016240247,-908.65,0.00019863,3]
[349179173,1737016240257,-500.0,0.00019863,3]
[349179174,1737016240267,-500.0,0.00019863,3]
[349179175,1737016240275,-500.0,0.00019863,3]
[349179176,1737016240286,-694.8,0.00019863,3]
[349179177,1737016240295,-500.0,0.00019863,3]
[349179178,1737016240304,-500.0,0.00019863,3]
[349179179,1737016240316,-500.0,0.00019863,3]
[349179180,1737016240326,-500.0,0.00019863,3]
[349179181,1737016240336,-500.0,0.00019863,3]
[349179182,1737016240346,-500.0,0.00019863,3]
[349179183,1737016240357,-500.0,0.00019863,3]
[349179184,1737016240366,-518.64,0.00019863,3]
[349179185,1737016240375,-500.0,0.00019863,3]
[349179186,1737016240385,-500.0,0.00019863,3]
[349179187,1737016240395,-500.0,0.00019863,3]
[349179188,1737016240404,-822.02,0.00019863,3]
[349179189,1737016240414,-500.0,0.00019863,3]
[349179190,1737016240423,-500.0,0.00019863,3]
[349179191,1737016240432,-500.0,0.00019863,3]
[349179192,1737016240442,-500.0,0.00019863,3]
[349179193,1737016240451,-264.52990488,0.00019863,3]
[349179194,1737016240461,-500.0,0.00019863,3]
[349179195,1737016240471,-654.19,0.00019863,2]
[349179196,1737016240481,-500.0,0.00019863,3]
[349179197,1737016240490,-500.0,0.00019863,3]
[349179198,1737016240500,-1814.93,0.00019863,3]
[349179199,1737016240509,-500.0,0.00019863,3]
[349179200,1737016240517,-500.0,0.00019863,3]
[349179201,1737016240527,-306.79407296,0.00019863,3]
[349179202,1737016240537,-532.07,0.00019863,3]
[349179203,1737016240547,-500.0,0.00019863,3]
[349179204,1737016240556,-3423.9,0.00019863,3]
[349179205,1737016240566,-1355.4,0.00019863,3]
[349179206,1737016240575,-500.0,0.00019863,3]
[349179207,1737016240585,-11423.92,0.00019863,3]
[349179208,1737016240595,-267.69569931,0.00019863,3]
[349179209,1737016240605,-23282.56,0.00019863,3]
[349179210,1737016240614,-500.0,0.00019863,3]
[349179211,1737016240624,-671.91,0.00019863,3]
[349179212,1737016240634,-500.0,0.00019863,3]
[349179213,1737016240643,-1061.4,0.00019863,3]
[349179214,1737016240653,-613.69,0.00019863,3]
[349179215,1737016240663,-548.68,0.00019863,3]
[349179216,1737016240673,-500.0,0.00019863,3]
[349179217,1737016240683,-500.0,0.00019863,3]
[349179218,1737016240795,-500.0,0.00019863,3]
[349179219,1737016240805,-740.28,0.00019863,3]
[349179220,1737016240816,-2359.74,0.00019863,3]
[349179221,1737016240825,-7640.34,0.00019863,3]
[349179222,1737016240836,-612.56,0.00019863,3]
[349179223,1737016240846,-1464.42,0.00019863,3]
[349179224,1737016240856,-1199.38,0.00019863,3]
[349179225,1737016240865,-2138.3,0.00019863,3]
[349179226,1737016240875,-3527.66,0.00019863,3]
[349179227,1737016240886,-500.0,0.00019863,3]
[349179228,1737016240895,-500.0,0.00019863,3]
[349179229,1737016240905,-500.0,0.00019863,3]
[349179230,1737016240914,-3028.79,0.00019863,3]
[349179231,1737016240923,-596.75,0.00019863,3]
[349179232,1737016240933,-794.43,0.00019863,3]
[349179233,1737016240942,-955.41,0.00019863,3]
[349179234,1737016240951,-585.22,0.00019863,3]
[349179235,1737016240960,-500.0,0.00019863,3]
[349179236,1737016240970,-2630.12,0.00019863,3]
[349179237,1737016240980,-500.0,0.00019863,3]
[349179238,1737016240989,-1340.87,0.00019863,3]
[349179239,1737016240999,-3741.69,0.00019863,3]
[349179240,1737016241011,-33251.21,0.00019863,3]
[349179241,1737016241020,-901.68,0.00019863,3]
[349179242,1737016241030,-14765.7,0.00019863,3]
[349179243,1737016241040,-837.12,0.00019863,3]
[349179244,1737016241050,-1363.77,0.00019863,3]
[349179245,1737016241060,-643.37361322,0.00019863,3]
[349179246,1737016241070,-500.0,0.00019863,3]
[349179247,1737016241080,-980.91,0.00019863,3]
[349179248,1737016241091,-9866.55,0.00019863,3]
[349179249,1737016241101,-8869.94,0.00019863,3]
[349179250,1737016241110,-577.22999131,0.00019863,3]
[349179251,1737016241120,-598.49,0.00019863,3]
[349179252,1737016241129,-500.0,0.00019863,3]
[349179253,1737016241138,-1696.36,0.00019863,3]
[349179254,1737016241147,-3805.04888823,0.000199,2]
[349179255,1737016241159,-280.9,0.00019924,4]
[349179256,1737016241169,-151.0,0.00019924,4]
[349179257,1737016241179,-500.0,0.00019973,2]
[349179258,1737016241189,-500.0,0.00019973,2]
[349179259,1737016241199,-500.0,0.00019973,2]
[349179260,1737016241209,-160.26278654,0.00019973,2]
[349179261,1737016241218,-150.0,0.0002,2]
[349179262,1737016241228,-160.0,0.0002,2]
[349179263,1737016241238,-30887.41895533,0.0002,2]
[349179264,1737016241248,-8789.86,0.0002,2]
[349179265,1737016241258,-2000.0,0.0002,2]
[349179266,1737016241267,-500.0,0.0002,2]
[349179267,1737016241276,-2139.0,0.0002,3]
[349179268,1737016241286,-2139.0,0.0002,3]
[349179269,1737016241296,-2139.0,0.0002,3]
[349179270,1737016241306,-2139.0,0.0002,3]
[349179271,1737016241316,-2139.0,0.0002,3]
[349179272,1737016241325,-2139.0,0.0002,3]
[349179273,1737016241335,-200.0,0.0002,5]
[349179274,1737016241344,-224.5,0.0002,2]
[349179275,1737016241355,-1000.0,0.0002,20]
[349179276,1737016241364,-1000.0,0.0002,3]
[349179277,1737016241374,-9414.0,0.0002,2]
[349179278,1737016241384,-565.99477078,0.0002,3]
[349179279,1737016241394,-500.0,0.0002,3]
[349179280,1737016241403,-500.0,0.0002,3]
[349179281,1737016241413,-500.0,0.0002,3]
[349179282,1737016241423,-500.0,0.0002,3]
[349179283,1737016241433,-500.0,0.0002,3]
[349179284,1737016241443,-964.82,0.0002,3]
[349179285,1737016241452,-500.0,0.0002,3]
[349179286,1737016241461,-2173.0,0.0002,3]
[349179287,1737016241471,-547.14,0.0002,3]
[349179288,1737016241480,-908.65,0.0002,3]
[349179289,1737016241489,-500.0,0.0002,3]
[349179290,1737016241498,-500.0,0.0002,3]
[349179291,1737016241510,-500.0,0.0002,3]
[349179292,1737016241519,-694.8,0.0002,3]
[349179293,1737016241528,-500.0,0.0002,3]
[349179294,1737016241539,-500.0,0.0002,3]
[349179295,1737016241549,-500.0,0.0002,3]
[349179296,1737016241558,-500.0,0.0002,3]
[349179297,1737016241567,-500.0,0.0002,3]
[349179298,1737016241577,-500.0,0.0002,3]
[349179299,1737016241587,-500.0,0.0002,3]
[349179300,1737016241596,-518.64,0.0002,3]
[349179301,1737016241607,-500.0,0.0002,3]
[349179302,1737016241617,-500.0,0.0002,3]
[349179303,1737016241627,-500.0,0.0002,3]
[349179304,1737016241637,-155.0,0.0002,2]
[349179305,1737016241647,-155.0,0.0002,2]
[349179306,1737016241658,-155.0,0.0002,2]
[349179307,1737016241667,-155.0,0.0002,2]
[349179308,1737016241677,-155.0,0.0002,2]
[349179309,1737016241687,-155.0,0.0002,2]
[349179310,1737016241697,-155.0,0.0002,2]
[349179311,1737016241707,-155.0,0.0002,2]
[349179312,1737016241718,-155.0,0.0002,2]
[349179313,1737016241729,-155.0,0.0002,2]
[349179314,1737016241738,-155.0,0.0002,2]
[349179315,1737016241748,-155.0,0.0002,2]
[349179316,1737016241761,-155.0,0.0002,2]
[349179317,1737016241772,-155.0,0.0002,2]
[349179318,1737016241782,-155.0,0.0002,2]
[349179319,1737016241793,-155.0,0.0002,2]
[349179320,1737016241803,-155.0,0.0002,2]
[349179321,1737016241813,-155.0,0.0002,2]
[349179322,1737016241823,-155.0,0.0002,2]
[349179323,1737016241833,-155.0,0.0002,2]
[349179324,1737016241843,-822.02,0.0002,3]
[349179325,1737016241853,-155.0,0.0002,2]
[349179326,1737016241862,-155.0,0.0002,2]
[349179327,1737016241871,-155.0,0.0002,2]
[349179328,1737016241881,-155.0,0.0002,2]
[349179329,1737016241891,-155.0,0.0002,2]
[349179330,1737016241900,-155.0,0.0002,2]
[349179331,1737016241910,-155.0,0.0002,2]
[349179332,1737016241919,-155.0,0.0002,2]
[349179333,1737016241928,-155.0,0.0002,2]
[349179334,1737016241939,-155.0,0.0002,2]
[349179335,1737016241950,-155.0,0.0002,2]
[349179336,1737016241960,-155.0,0.0002,2]
[349179337,1737016241970,-155.0,0.0002,2]
[349179338,1737016241981,-155.0,0.0002,2]
[349179339,1737016241991,-500.0,0.0002,3]
[349179340,1737016242003,-155.0,0.0002,2]
[349179341,1737016242013,-155.0,0.0002,2]
[349179342,1737016242023,-253.06,0.0002,2]
[349179343,1737016242033,-155.0,0.0002,2]
[349179344,1737016242042,-155.0,0.0002,2]
[349179345,1737016242053,-155.0,0.0002,2]
[349179346,1737016242062,-155.0,0.0002,2]
[349179347,1737016242072,-155.0,0.0002,2]
[349179348,1737016242081,-155.0,0.0002,2]
[349179349,1737016242090,-155.0,0.0002,2]
[349179350,1737016242100,-155.0,0.0002,2]
[349179351,1737016242110,-155.0,0.0002,2]
[349179352,1737016242119,-155.0,0.0002,2]
[349179353,1737016242129,-155.0,0.0002,2]
[349179354,1737016242138,-155.0,0.0002,2]
[349179355,1737016242148,-155.0,0.0002,2]
[349179356,1737016242158,-155.0,0.0002,2]
[349179357,1737016242167,-155.0,0.0002,2]
[349179358,1737016242177,-155.0,0.0002,2]
[349179359,1737016242187,-155.0,0.0002,2]
[349179360,1737016242196,-155.0,0.0002,2]
[349179361,1737016242206,-155.0,0.0002,2]
[349179362,1737016242216,-155.0,0.0002,2]
[349179363,1737016242225,-155.0,0.0002,2]
[349179364,1737016242235,-155.0,0.0002,2]
[349179365,1737016242245,-155.0,0.0002,2]
[349179366,1737016242255,-155.0,0.0002,2]
[349179367,1737016242264,-155.0,0.0002,2]
[349179368,1737016242274,-155.0,0.0002,2]
[349179369,1737016242283,-155.0,0.0002,2]
[349179370,1737016242293,-155.0,0.0002,2]
[349179371,1737016242303,-155.0,0.0002,2]
[349179372,1737016242313,-155.0,0.0002,2]
[349179373,1737016242323,-155.0,0.0002,2]
[349179374,1737016242332,-615.47043614,0.0002,3]
[349179375,1737016242342,-155.0,0.0002,2]
[349179376,1737016242351,-155.0,0.0002,2]
[349179377,1737016242360,-155.0,0.0002,2]
[349179378,1737016242370,-155.0,0.0002,2]
[349179379,1737016242379,-500.0,0.0002,3]
[349179380,1737016242388,-155.0,0.0002,2]
[349179381,1737016242398,-155.0,0.0002,2]
[349179382,1737016242407,-221.0,0.0002,2]
[349179383,1737016242417,-155.0,0.0002,2]
[349179384,1737016242427,-155.0,0.0002,2]
[349179385,1737016242436,-155.0,0.0002,2]
[349179386,1737016242446,-155.0,0.0002,2]
[349179387,1737016242456,-155.0,0.0002,2]
[349179388,1737016242466,-155.0,0.0002,2]
[349179389,1737016242475,-155.0,0.0002,2]
[349179390,1737016242485,-155.0,0.0002,2]
[349179391,1737016242494,-155.0,0.0002,2]
[349179392,1737016242504,-155.0,0.0002,2]
[349179394,1737016242514,-155.0,0.0002,2]
[349179395,1737016242523,-155.0,0.0002,2]
[349179396,1737016242532,-155.0,0.0002,2]
[349179397,1737016242542,-155.0,0.0002,2]
[349179398,1737016242551,-155.0,0.0002,2]
[349179399,1737016242561,-155.0,0.0002,2]
[349179400,1737016242571,-155.0,0.0002,2]
[349179401,1737016242580,-155.0,0.0002,2]
[349179402,1737016242590,-188.0,0.0002,2]
[349179403,1737016242599,-500.0,0.0002,3]
[349179404,1737016242609,-500.0,0.0002,3]
[349179405,1737016242619,-1000.0,0.0002,2]
[349179406,1737016242629,-654.19,0.0002,2]
[349179407,1737016242639,-280.9,0.0002,4]
[349179408,1737016242648,-151.0,0.0002,4]
[349179409,1737016242657,-500.0,0.0002,3]
[349179410,1737016242667,-500.0,0.0002,3]
[349179412,1737016242676,-1814.93,0.0002,3]
[349179413,1737016242685,-500.0,0.0002,3]
[349179415,1737016242695,-500.0,0.0002,3]
[349179417,1737016242705,-500.0,0.0002,2]
[349179419,1737016242717,-532.07,0.0002,3]
[349179421,1737016242726,-500.0,0.0002,3]
[349179422,1737016242736,-3423.9,0.0002,3]
[349179423,1737016242745,-1355.4,0.0002,3]
[349179424,1737016242756,-500.0,0.0002,3]
[349179425,1737016242766,-11423.92,0.0002,3]
[349179426,1737016242776,-23282.56,0.0002,3]
[349179427,1737016242786,-500.0,0.0002,3]
[349179428,1737016242797,-671.91,0.0002,3]
[349179430,1737016242808,-500.0,0.0002,3]
[349179431,1737016242818,-1061.4,0.0002,3]
[349179433,1737016242827,-613.69,0.0002,3]
[349179435,1737016242837,-548.68,0.0002,3]
[349179436,1737016242847,-500.0,0.0002,3]